bitfinex/quotes_ETHUSD_20241108
["timestamp","ask_amount","ask_price","bid_price","bid_amount"]
[1731077815717,4.05756906,2911.4,2911.0,0.01]
[1731077815929,3.47437739,2911.3,2911.0,0.01]
[1731077816303,0.06862048,2911.3,2911.0,0.01]
[1731077816442,0.55,2911.5,2911.0,0.01]
[1731077816666,0.767,2911.3,2911.0,0.01]
[1731077817309,0.06862048,2911.2,2911.0,0.01]
[1731077817516,0.767,2911.3,2911.0,0.01]
[1731077819169,0.7613,2911.1,2911.0,0.01]
[1731077819664,0.7613,2911.1,2910.9,0.1385877]
[1731077819808,0.86542048,2911.0,2910.9,0.1385877]
[1731077820711,1.41542048,2911.0,2910.9,0.1385877]
[1731077820915,0.86542048,2911.0,2910.9,0.1385877]
[1731077821451,0.7856,2910.9,2908.9,4.36850744]
[1731077821668,0.7856,2910.9,2908.9,4.37850744]
[1731077821669,0.24504253,2910.8,2908.9,4.37850744]
[1731077821811,0.24504253,2910.8,2909.4,0.06873195]
[1731077822016,0.06862048,2910.8,2909.4,3.06873195]
[1731077822273,0.7881,2910.7,2909.3,0.36]
[1731077822430,0.06862048,2910.6,2909.3,0.36]
[1731077823134,0.7881,2910.7,2909.4,0.06872219]
[1731077823443,0.7881,2911.3,2910.5,3.0]
[1731077823617,0.7881,2911.3,2910.6,1.15128979]
[1731077823863,0.7814,2911.7,2910.6,0.73685074]
[1731077824176,0.06862048,2911.6,2909.9,3.0]
[1731077824375,0.8094,2911.5,2909.9,3.0]
[1731077824605,0.06862048,2911.4,2909.9,3.0]
[1731077824805,0.06862048,2911.4,2910.0,0.06871929]
[1731077825014,0.06862048,2911.4,2910.2,4.36850744]
[1731077825308,0.06862048,2911.4,2910.3,0.51243464]
[1731077825665,0.06862048,2911.4,2910.3,0.44372267]
[1731077826111,0.06862048,2911.4,2910.3,0.51243134]
[1731077826469,0.06862048,2911.4,2909.7,0.7999]
[1731077826768,0.8035,2911.3,2909.7,3.0]
[1731077827074,0.06862048,2911.2,2909.7,3.0]
[1731077827609,0.06862048,2911.2,2909.8,0.06871622]
[1731077827825,0.06862048,2911.2,2910.0,4.36850744]
[1731077827971,0.06862048,2911.2,2910.1,3.06870864]
[1731077828174,0.06862048,2911.2,2910.1,3.0]
[1731077829015,0.06862048,2911.2,2910.2,0.06871184]
[1731077829571,0.8035,2911.3,2910.2,0.8191]
[1731077829776,0.8035,2911.3,2910.2,5.18760744]
[1731077829976,0.8035,2911.3,2910.3,3.51876074]
[1731077830221,0.8035,2911.3,2910.7,3.0]
[1731077830575,0.8035,2911.3,2910.3,3.51876074]
[1731077830876,0.8035,2911.3,2910.4,0.06870001]
[1731077832093,0.06862048,2911.2,2910.3,3.51876074]
[1731077832421,0.8035,2911.3,2910.4,0.87063682]
[1731077832595,0.8035,2911.3,2910.4,0.93934504]
[1731077832793,0.8035,2911.3,2910.4,0.87063682]
[1731077833192,0.06862048,2911.2,2910.4,0.87063682]
[1731077834133,0.8035,2911.3,2910.5,0.06870733]
[1731077834285,0.8035,2911.3,2910.6,4.36850744]
[1731077834482,0.85143659,2911.7,2910.7,3.5055491]
[1731077834711,0.08586359,2911.6,2910.7,3.43685074]
[1731077834935,0.85143659,2911.7,2910.7,0.43685074]
[1731077835157,0.08587304,2911.6,2910.4,0.73934415]
[1731077835508,0.7728,2911.5,2909.9,3.0]
[1731077835707,0.784,2911.3,2909.9,3.0]
[1731077835943,0.07919929,2911.2,2910.0,7.43722185]
[1731077836166,0.784,2911.3,2910.0,7.36850744]
[1731077836443,0.784,2911.3,2910.4,4.36850744]
[1731077836664,0.784,2911.3,2910.5,3.50554922]
[1731077837302,0.784,2911.3,2910.5,3.43685074]
[1731077837506,0.05153659,2911.7,2910.8,4.36850744]
[1731077837755,0.05153659,2911.7,2910.9,0.06868923]
[1731077837917,0.05153659,2911.7,2910.8,4.36850744]
[1731077838111,0.05153659,2911.7,2910.9,0.43685074]
[1731077838309,0.05153659,2911.7,2910.5,4.1345986]
[1731077838310,0.13070442,2911.7,2910.5,3.43685074]
[1731077838555,0.13070442,2911.7,2910.5,0.43685074]
[1731077838709,0.13070442,2911.7,2910.6,0.06869917]
[1731077839253,0.05153659,2911.7,2910.8,4.36850744]
[1731077839458,0.05153659,2911.7,2911.2,4.07423087]
[1731077839613,0.05153659,2911.7,2911.3,0.40742309]
[1731077840120,0.05153659,2911.7,2910.9,3.0]
[1731077840323,0.05153659,2911.7,2911.0,0.06869427]
[1731077840515,0.13070794,2911.7,2910.6,3.0]
[1731077842513,0.13070794,2911.7,2910.7,0.06869844]
[1731077842736,0.05153659,2911.7,2910.9,4.07423087]
[1731077842978,0.05153659,2911.7,2911.0,0.40742309]
[1731077843295,0.874359,2912.5,2911.1,0.88478947]
[1731077843436,5.0,2914.1,2911.1,0.88478947]
[1731077843437,0.7955,2913.2,2911.4,0.01]
[1731077843792,0.7955,2913.0,2911.7,4.07423087]
[1731077843995,0.07914601,2912.9,2911.5,0.58409968]
[1731077844136,0.7955,2912.8,2911.5,0.58409968]
[1731077844342,0.87465072,2912.7,2911.6,0.06867556]
[1731077844579,0.87465072,2912.7,2911.5,0.58409968]
[1731077844938,0.87465072,2912.7,2911.5,1.34993274]
[1731077845143,0.7955,2912.7,2911.7,4.07423087]
[1731077845436,0.7955,2912.7,2911.5,0.58409968]
[1731077845639,0.7955,2912.7,2911.4,3.0]
[1731077845833,0.7955,2912.7,2911.5,0.06867646]
[1731077846275,0.7955,2912.7,2911.5,0.78296719]
[1731077846540,0.7955,2912.7,2911.5,0.78296722]
[1731077846735,0.07915188,2912.6,2911.4,3.0]
[1731077846940,3.0,2913.4,2911.4,3.11]
[1731077846941,0.7856,2913.2,2911.4,3.11]
[1731077847182,0.86475247,2913.1,2911.5,0.06867696]
[1731077847784,0.86475247,2913.1,2911.5,0.06867698]
[1731077848002,0.86475247,2913.1,2911.7,4.07423087]
[1731077848139,0.86475247,2913.1,2911.4,4.37357857]
[1731077848140,0.7856,2913.1,2912.1,4.07423087]
[1731077848338,0.7856,2913.1,2912.2,0.8218539]
[1731077848595,0.7856,2913.1,2912.5,4.07423087]
[1731077848892,0.01,2914.9,2912.3,0.55]
[1731077848893,0.8115,2913.4,2912.9,4.07423087]
[1731077849053,0.8115,2914.4,2913.0,0.06864176]
[1731077849240,0.89059503,2914.4,2913.1,0.55]
[1731077849437,0.89059503,2914.4,2913.0,4.07423087]
[1731077849438,0.8115,2914.4,2913.0,4.07423087]
[1731077849642,0.07909517,2914.3,2913.0,4.07423087]
[1731077849958,0.07909517,2914.3,2913.0,4.48165396]
[1731077850182,0.07909517,2914.3,2913.1,3.7756]
[1731077850510,0.07909447,2914.3,2913.1,3.0]
[1731077851005,0.07909447,2914.3,2913.1,3.06863342]
[1731077851204,0.8115,2914.4,2913.1,3.06863342]
[1731077851366,0.8115,2914.4,2913.5,4.07423087]
[1731077851762,0.8115,2914.4,2913.6,35.0686242]
[1731077851973,0.8115,2914.4,2913.6,35.0]
[1731077852410,0.8115,2914.4,2913.7,0.06862232]
[1731077852614,0.8115,2914.4,2913.8,0.06862153]
[1731077852899,0.8115,2914.4,2913.9,0.30686215]
[1731077853103,0.7696,2915.2,2914.0,0.06862201]
[1731077853309,0.7696,2915.2,2913.9,0.30686215]
[1731077853310,0.07907599,2915.1,2913.9,0.30686215]
[1731077853601,0.808,2915.0,2914.0,0.06861987]
[1731077854205,0.808,2915.0,2913.9,0.30686215]
[1731077854449,0.808,2915.0,2914.0,4.07423087]
[1731077854617,0.808,2915.0,2914.1,0.06861555]
[1731077854826,0.808,2915.0,2914.1,0.55]
[1731077855649,0.808,2915.0,2914.0,5.32244017]
[1731077855856,0.808,2915.0,2914.2,0.55]
[1731077857026,0.808,2915.0,2914.4,4.07423087]
[1731077857347,0.07906466,2915.8,2914.5,0.40742309]
[1731077857348,0.7961,2915.7,2914.5,0.40742309]
[1731077857508,0.7961,2915.7,2914.4,4.07423087]
[1731077857509,0.8109,2915.5,2914.4,4.07423087]
[1731077857918,0.8109,2915.5,2914.5,0.0686048]
[1731077858942,0.8109,2915.5,2914.4,4.62233392]
[1731077859110,0.8109,2915.5,2914.5,0.06860482]
[1731077859559,0.8109,2915.5,2914.8,4.07423087]
[1731077859759,0.8109,2915.5,2914.9,0.06859719]
[1731077859966,0.7916,2916.7,2914.9,0.06859719]
[1731077860117,0.7916,2916.5,2914.8,4.07423087]
[1731077860318,0.7916,2916.3,2914.9,35.40742309]
[1731077860666,0.7916,2916.1,2914.9,35.40742309]
[1731077860826,0.7916,2916.1,2914.8,4.07423087]
[1731077860827,0.07904587,2916.0,2914.8,4.07423087]
[1731077861024,0.7916,2915.9,2914.5,3.0]
[1731077861214,0.7651,2915.7,2914.6,0.06860421]
[1731077861415,0.07906056,2915.6,2914.6,0.06860421]
[1731077861962,0.07906056,2915.6,2914.4,4.07423087]
[1731077862129,0.07906056,2915.6,2914.0,5.18568081]
[1731077862130,0.8311,2915.5,2914.0,5.18568081]
[1731077862332,0.91016855,2915.4,2914.1,0.51856808]
[1731077862549,0.91016855,2915.4,2913.7,0.8263]
[1731077862757,0.91016855,2915.4,2913.6,4.07423087]
[1731077863255,0.91016855,2915.4,2913.3,0.8255]
[1731077863615,0.91016855,2915.4,2913.4,0.69432254]
[1731077863814,0.91016855,2915.4,2913.7,3.0]
[1731077864076,0.91016855,2915.4,2913.8,0.77604681]
[1731077864221,0.91016855,2915.4,2913.8,0.70742309]
[1731077864419,0.91016855,2915.4,2913.8,0.77604635]
[1731077865655,0.91016855,2915.4,2913.8,0.70742309]
[1731077866225,0.91016855,2915.4,2913.9,0.06862774]
[1731077866732,0.8149,2915.2,2913.4,0.69432254]
[1731077866918,0.8940033,2915.1,2913.2,4.07423087]
[1731077867115,0.8940033,2915.1,2913.3,0.06863362]
[1731077867360,0.8940033,2915.1,2913.4,0.46485347]
[1731077867763,0.8940033,2915.1,2913.5,0.06863363]
[1731077869055,0.8940033,2915.1,2913.6,4.07423087]
[1731077869759,0.8940033,2915.1,2913.7,0.06862471]
[1731077870120,0.8940033,2915.1,2913.7,3.06862471]
[1731077870358,0.8940033,2915.1,2914.0,4.07423087]
[1731077870661,0.8149,2915.1,2914.4,4.07423087]
[1731077870960,0.8149,2915.1,2914.5,0.06861047]
[1731077871260,0.8149,2915.1,2914.8,4.07423087]
[1731077871418,0.8102,2916.5,2914.9,0.06860456]
[1731077871619,0.8302,2916.3,2914.9,0.41428354]
[1731077871857,0.8302,2916.1,2914.9,0.41428354]
[1731077872054,0.8302,2915.9,2914.9,0.41428354]
[1731077872670,0.8302,2915.9,2914.8,4.07423087]
[1731077872870,0.8302,2915.9,2915.0,0.06859364]
[1731077873030,0.8302,2915.9,2915.2,4.07423087]
[1731077873245,0.8302,2915.9,2915.3,0.06859153]
[1731077874433,0.8233,2916.9,2915.8,4.07423087]
[1731077874978,0.8233,2916.9,2916.3,4.07423087]
[1731077875197,0.6982877,2917.8,2916.3,4.07423087]
[1731077875468,0.90900015,2917.7,2916.0,3.0]
[1731077875678,0.90900015,2917.7,2916.3,4.07423087]
[1731077875882,0.90900015,2917.7,2916.4,0.06856171]
[1731077876034,0.90900015,2917.7,2916.3,4.48851071]
[1731077877470,0.90322759,2917.7,2916.0,3.0]
[1731077877980,0.90322759,2917.7,2915.9,3.0]
[1731077878471,0.90322759,2917.7,2915.8,4.07423087]
[1731077878472,0.56,2917.6,2915.8,4.07423087]
[1731077878686,0.08572374,2917.5,2915.9,0.06857899]
[1731077879489,0.55,2917.4,2915.7,0.69887996]
[1731077879639,0.08572985,2917.3,2915.4,3.41428224]
[1731077879838,0.08572985,2917.3,2915.5,1.49959521]
[1731077880135,0.08572985,2917.3,2915.7,4.07423087]
[1731077880348,0.08572985,2917.3,2915.8,0.06857752]
[1731077880545,0.8051,2917.2,2915.8,0.06857752]
[1731077880846,0.89082189,2917.1,2915.9,0.41428084]
[1731077881555,0.89082189,2917.1,2916.0,0.06857775]
[1731077881783,0.89082189,2917.1,2916.1,4.07423087]
[1731077881990,0.8051,2917.1,2916.2,0.06857069]
[1731077882193,0.8051,2917.1,2916.1,4.07423087]
[1731077882390,0.8051,2917.1,2916.2,0.40742309]
[1731077882648,0.8051,2917.1,2915.9,0.41428084]
[1731077882953,0.7646,2916.9,2915.7,4.07423087]
[1731077883178,0.0857219,2916.8,2915.7,4.07423087]
[1731077883380,0.7646,2916.7,2915.3,7.52165111]
[1731077883583,0.7646,2916.5,2915.5,0.68216002]
[1731077883787,0.85033728,2916.4,2915.0,4.07423087]
[1731077884130,0.85033728,2916.4,2915.1,0.06859118]
[1731077884332,0.85033728,2916.4,2914.9,0.69603357]
[1731077884465,0.85033728,2916.4,2914.9,4.77026444]
[1731077884671,0.85033728,2916.4,2915.0,0.55721644]
[1731077886307,0.85033728,2916.4,2914.5,4.07423087]
[1731077886719,0.85033728,2916.4,2914.6,0.06860267]
[1731077887207,0.85033728,2916.4,2914.5,4.07423087]
[1731077887418,0.85033728,2916.4,2914.6,0.06860273]
[1731077887987,0.85033728,2916.4,2914.6,3.06860273]
[1731077888290,0.85033728,2916.4,2914.7,0.71428336]
[1731077888501,0.85033728,2916.4,2914.8,0.06860266]
[1731077888701,0.85033728,2916.4,2914.9,4.07423087]
[1731077888925,0.85033728,2916.4,2915.3,4.07423087]
[1731077889127,0.85033728,2916.4,2915.4,0.06858691]
[1731077889438,0.7646,2916.4,2915.5,0.41428178]
[1731077889587,0.7646,2916.4,2915.5,0.48286701]
[1731077889786,0.7646,2916.4,2915.5,0.41428178]
[1731077890042,0.7646,2916.4,2915.6,0.06858522]
[1731077890525,0.7646,2916.4,2915.7,4.07423087]
[1731077890689,0.7646,2916.4,2915.8,0.48285909]
[1731077890889,0.7646,2916.4,2915.8,0.41428161]
[1731077891402,0.7646,2916.4,2915.4,4.07423087]
[1731077891930,0.7646,2916.4,2915.5,0.06858499]
[1731077892102,0.7646,2916.4,2915.5,3.06858499]
[1731077892519,0.7646,2916.4,2915.5,3.0]
[1731077892835,0.7507,2916.2,2915.0,4.07423087]
[1731077893133,0.7507,2916.0,2915.1,0.49035309]
[1731077893339,0.7507,2916.0,2915.1,0.55894794]
[1731077893538,0.7507,2916.0,2915.1,0.49035309]
[1731077893721,0.7507,2916.0,2915.1,0.55895038]
[1731077894237,0.7507,2916.0,2914.5,4.07423087]
[1731077894391,0.8308,2915.8,2914.1,4.07423087]
[1731077894595,0.8308,2915.6,2914.2,0.06861316]
[1731077894836,0.8308,2915.4,2914.2,0.06861316]
[1731077895132,0.8308,2915.2,2914.1,4.07423087]
[1731077895361,0.08577437,2915.1,2914.1,4.07423087]
[1731077895503,0.8187,2915.0,2913.7,4.07423087]
[1731077896143,0.7706,2914.8,2913.8,0.0686289]
[1731077896453,0.7706,2914.6,2913.7,4.07423087]
[1731077896610,0.7706,2914.6,2913.8,0.06862866]
[1731077897144,0.8162,2914.4,2913.7,4.07423087]
[1731077897341,0.8162,2914.4,2913.8,0.06863498]
[1731077897549,0.8162,2914.4,2913.5,0.06862685]
[1731077898044,0.8162,2914.4,2913.6,0.06862955]
[1731077898436,0.8162,2914.4,2913.7,0.70034108]
[1731077898641,0.8162,2914.4,2913.8,0.06862789]
[1731077900455,0.68271137,2915.7,2913.8,0.06862789]
[1731077900456,0.8209,2915.4,2913.8,4.4260351]
[1731077900611,0.90667404,2915.3,2913.9,0.44260351]
[1731077901309,0.90667404,2915.3,2913.9,35.44260351]
[1731077901713,0.90667404,2915.3,2914.0,0.06862291]
[1731077902864,0.90667404,2915.3,2914.0,35.06862291]
[1731077903025,0.90667404,2915.3,2914.1,3.45602212]
[1731077903225,0.90667404,2915.3,2914.2,0.06862093]
[1731077903871,0.90667404,2915.3,2913.9,4.03524875]
[1731077903872,0.90667404,2915.3,2914.0,0.06862091]
[1731077905456,0.90667404,2915.3,2913.9,3.44260351]
[1731077905629,0.90667404,2915.3,2913.9,0.44260351]
[1731077905830,0.90667404,2915.3,2914.0,0.66126613]
[1731077906046,0.08577233,2915.2,2914.0,0.6612631]
[1731077906250,0.7813,2915.2,2914.0,0.6612631]
[1731077906447,0.67271137,2915.7,2914.0,0.6612631]
[1731077906448,0.7813,2915.0,2914.0,0.6612631]
[1731077906670,0.08577615,2914.9,2914.0,0.6612631]
[1731077907373,0.08577615,2914.9,2914.1,0.06862088]
[1731077907547,0.7813,2915.0,2914.1,0.06862088]
[1731077908579,0.87287609,2914.9,2913.9,0.44260351]
[1731077908988,0.87287609,2914.9,2913.7,0.06862768]
[1731077909280,0.87287609,2914.9,2913.6,0.6694331]
[1731077910063,0.87287609,2914.9,2913.5,3.0]
[1731077910269,0.88287609,2914.9,2913.1,0.79957713]
[1731077910487,0.88287609,2914.9,2913.1,0.11]
[1731077910684,0.01,2914.7,2913.1,0.11]
[1731077910868,0.8074,2914.6,2913.1,0.11]
[1731077911070,0.8074,2914.4,2913.1,0.11]
[1731077911283,0.8074,2914.1,2913.1,0.11]
[1731077911483,0.01,2914.4,2913.1,0.11]
[1731077911484,0.7835,2913.9,2913.1,0.11]
[1731077911670,0.7835,2913.7,2913.1,0.11]
[1731077911875,0.0858168,2913.6,2913.1,0.11]
[1731077912991,0.7835,2913.7,2913.1,0.11]
[1731077913163,0.7835,2913.7,2913.2,0.06863738]
[1731077913706,0.7835,2913.7,2913.1,0.11]
[1731077914011,0.7835,2913.7,2913.1,0.421]
[1731077914299,0.7835,2913.7,2913.1,0.11]
[1731077914507,0.6856854,2914.7,2913.1,0.11]
[1731077914508,0.88822001,2913.6,2913.1,0.11]
[1731077916906,0.7761,2913.4,2913.1,0.11]
[1731077917201,0.08583004,2913.3,2913.1,0.11]
[1731077918806,0.7761,2913.4,2913.1,0.11]
[1731077919012,0.08581513,2913.3,2913.1,0.11]
[1731077919190,0.7761,2913.4,2913.1,0.11]
[1731077920469,0.08582289,2913.3,2913.1,0.11]
[1731077921464,0.8096,2913.2,2913.1,0.11]
[1731077923934,0.7877,2913.8,2913.1,0.11]
[1731077926550,0.09580858,2914.5,2913.1,0.11]
[1731077926551,0.7839,2913.6,2913.1,0.11]
[1731077926700,0.08581991,2913.5,2913.1,0.11]
[1731077927742,0.7839,2913.6,2913.1,0.11]
[1731077928404,0.7839,2913.6,2913.1,0.17864606]
[1731077928805,0.08581982,2914.5,2913.1,0.17864606]
[1731077928806,0.7739,2914.4,2913.1,4.24902463]
[1731077929016,0.08580464,2914.3,2913.2,0.42490246]
[1731077929420,0.7657,2914.2,2913.2,0.42490246]
[1731077929752,0.7657,2914.2,2913.2,0.49354655]
[1731077929753,0.85150512,2914.2,2913.2,0.49354655]
[1731077929920,0.08579716,2914.1,2913.3,0.06863772]
[1731077930321,0.08579716,2914.1,2913.2,0.42490246]
[1731077930548,0.7657,2914.2,2913.3,0.52916582]
[1731077930822,0.01,2915.1,2913.3,0.52916582]
[1731077930823,0.8025,2914.0,2913.3,0.4605281]
[1731077931017,0.08581128,2913.9,2913.1,0.11]
[1731077932118,0.7892,2913.8,2913.1,0.11]
[1731077932330,0.01,2914.4,2913.1,0.11]
[1731077932331,0.7892,2913.6,2913.1,0.11]
[1731077932559,0.08581978,2913.5,2913.1,0.11]
[1731077933631,0.7539,2914.2,2913.1,0.11]
[1731077933831,0.08580336,2914.1,2913.2,0.41803786]
[1731077936178,0.7539,2914.2,2913.3,0.8259]
[1731077938445,0.773,2914.8,2913.4,4.1390166]
[1731077938650,0.0857898,2914.7,2913.5,0.755]
[1731077938876,0.773,2914.8,2913.8,4.07037857]
[1731077939187,0.773,2914.8,2913.9,0.40703786]
[1731077939581,0.773,2914.8,2913.5,0.755]
[1731077939767,0.8202,2914.6,2913.5,0.755]
[1731077939933,0.08579605,2914.5,2913.5,0.755]
[1731077940549,0.08579605,2914.5,2913.4,0.06863682]
[1731077941986,0.08579605,2914.5,2913.3,4.07037857]
[1731077942148,0.08579605,2914.5,2913.4,0.89322841]
[1731077942348,0.8202,2914.6,2913.4,0.89322839]
[1731077942585,0.08578623,2914.5,2913.4,0.82459164]
[1731077943195,0.08578623,2914.5,2913.4,0.89322742]
[1731077943389,0.08578623,2914.5,2913.5,3.30484602]
[1731077943702,0.08578623,2914.5,2913.6,0.48844311]
[1731077943876,0.0857855,2914.4,2913.6,0.48843574]
[1731077944045,0.0857855,2914.4,2913.6,3.37347442]
[1731077944258,0.8301,2914.3,2913.6,3.37347442]
[1731077944462,0.8301,2914.3,2913.6,0.0686284]
[1731077944896,0.8301,2914.3,2913.4,0.82459164]
[1731077945056,0.08579294,2914.2,2913.2,1.17553786]
[1731077945775,0.7671,2914.1,2913.2,0.41803786]
[1731077946104,0.08581004,2914.0,2913.4,3.30484602]
[1731077946421,0.7671,2914.6,2913.6,0.7919]
[1731077946704,0.08578816,2914.5,2913.6,1.20843844]
[1731077946908,0.7671,2914.6,2913.7,3.37347655]
[1731077947063,0.7671,2914.6,2913.7,3.30484602]
[1731077947264,0.7671,2914.6,2913.8,0.06862746]
[1731077947469,0.7671,2914.6,2913.8,0.45819119]
[1731077948499,0.08578608,2914.5,2913.7,3.30484602]
[1731077948733,0.08578608,2914.5,2913.3,3.30484602]
[1731077949191,0.08578608,2914.5,2913.4,0.06863826]
[1731077949629,0.751,2914.4,2913.2,0.7919]
[1731077949932,0.751,2914.2,2913.1,4.273269]
[1731077950091,0.08580547,2914.1,2913.1,5.18078616]
[1731077950293,0.08580547,2914.1,2913.2,3.30484602]
[1731077950497,0.08580546,2914.0,2913.2,3.30484602]
[1731077950828,0.08580318,2914.1,2913.2,3.30484602]
[1731077951137,0.08580318,2914.1,2913.2,3.37349203]
[1731077951289,0.08580318,2914.1,2913.2,4.2988455]
[1731077951816,0.08580747,2914.1,2913.2,4.23019949]
[1731077952637,0.7761,2914.0,2913.1,4.273269]
[1731077952842,0.7761,2913.8,2913.1,4.273269]
[1731077952993,0.08581342,2913.7,2913.1,4.273269]
[1731077953894,0.08581328,2913.7,2913.1,4.273269]
[1731077955007,0.7761,2913.8,2913.2,0.06865059]
[1731077955210,0.7761,2913.8,2913.1,4.76905381]
[1731077956237,0.7761,2913.8,2913.1,4.273269]
[1731077958039,0.7761,2913.8,2913.1,7.57811502]
[1731077958515,0.7761,2913.8,2913.1,4.273269]
[1731077959497,0.08581503,2913.7,2913.1,4.273269]
[1731077960635,0.08581321,2913.7,2913.1,4.273269]
[1731077961335,0.8186,2913.6,2913.1,4.273269]
[1731077961901,0.8186,2913.6,2913.1,4.70746095]
[1731077962198,0.8186,2913.6,2913.1,4.273269]
[1731077964124,0.7961,2914.0,2913.2,0.06865038]
[1731077964296,0.08580176,2913.9,2913.1,7.57811502]
[1731077964646,0.7961,2914.0,2913.1,7.57811502]
[1731077964940,0.7961,2914.0,2913.2,1.5567115]
[1731077965136,0.7961,2914.0,2913.2,0.7578115]
[1731077968344,0.7655,2914.4,2913.7,3.30484602]
[1731077968549,0.7655,2914.9,2914.0,3.30484602]
[1731077968695,0.7655,2914.9,2914.1,0.39910207]
[1731077969336,0.7655,2914.9,2914.1,1.17090207]
[1731077969546,4.0,2915.0,2914.3,3.30484602]
[1731077970042,4.0,2915.0,2914.4,0.0686094]
[1731077970238,4.0,2915.0,2914.5,0.33734554]
[1731077970826,4.0,2915.0,2914.7,0.7792]
[1731077971202,4.0,2915.0,2914.9,3.30484602]
[1731077972309,4.0,2915.0,2914.9,3.37344709]
[1731077972641,0.7709,2916.3,2915.1,0.7792]
[1731077972801,0.7709,2916.3,2915.6,3.30484602]
[1731077972998,0.7709,2916.3,2915.7,0.06858249]
[1731077973454,0.7709,2916.3,2915.2,0.37792]
[1731077973455,0.7709,2916.3,2915.3,3.30484602]
[1731077973735,0.7709,2916.3,2915.2,0.37792]
[1731077974626,0.7709,2916.3,2914.8,0.7561]
[1731077975011,0.7709,2916.3,2915.0,3.30484602]
[1731077975943,1.3191,2916.0,2914.7,0.5631845]
[1731077976243,0.7691,2915.8,2914.5,3.64219156]
[1731077976539,0.08575653,2915.7,2914.5,3.64219156]
[1731077976747,0.08575653,2915.7,2914.6,0.56508464]
[1731077977539,0.7691,2915.8,2914.8,3.30484602]
[1731077977738,0.7691,2915.8,2915.1,3.30484602]
[1731077978061,0.7691,2915.8,2915.2,0.0685946]
[1731077978787,0.7691,2915.8,2915.2,0.06859459]
[1731077979064,0.7691,2915.8,2915.2,0.41840406]
[1731077979433,0.7691,2915.8,2914.8,3.30484602]
[1731077980366,0.7691,2915.8,2914.9,0.06860286]
[1731077980866,0.7691,2915.8,2914.8,3.30484602]
[1731077981171,0.7691,2915.8,2914.9,0.06859804]
[1731077982267,0.7691,2915.8,2914.8,3.30484602]
[1731077982559,0.7691,2915.8,2914.9,0.3304846]
[1731077982725,0.7691,2915.8,2914.8,3.30484602]
[1731077983554,0.8205,2915.6,2914.6,0.7898]
[1731077983757,0.08575275,2915.5,2914.5,3.0]
[1731077983967,0.8205,2915.6,2914.5,3.0]
[1731077986493,0.7768,2915.4,2913.7,0.7692]
[1731077986673,3.0,2915.7,2913.9,3.85656735]
[1731077986674,0.7768,2915.2,2913.9,3.85656735]
[1731077986989,0.08577099,2915.1,2913.9,3.30484602]
[1731077987888,0.08577099,2915.1,2914.0,3.0]
[1731077988046,0.08577099,2915.1,2914.1,0.6304846]
[1731077988248,0.08577099,2915.1,2914.2,3.37346283]
[1731077988452,0.08576425,2915.1,2914.2,0.06861681]
[1731077988685,0.08576425,2915.1,2913.9,6.37346259]
[1731077988869,0.7768,2915.2,2913.9,6.37346259]
[1731077989553,0.7768,2915.2,2913.9,6.30484602]
[1731077989894,0.7768,2915.2,2914.0,0.6998251]
[1731077990063,0.7768,2915.2,2914.1,0.06861185]
[1731077990264,0.7768,2915.2,2914.0,0.6998251]
[1731077990475,0.7768,2915.2,2914.1,0.06861184]
[1731077992152,0.7768,2915.2,2914.0,1.26985316]
[1731077992497,0.7768,2915.2,2914.1,0.75746992]
[1731077992650,0.7768,2915.2,2914.2,0.06861185]
[1731077993415,0.7768,2915.2,2914.6,3.30484602]
[1731077993764,0.7768,2915.2,2914.7,0.06860426]
[1731077994108,0.7768,2915.2,2914.6,3.30484602]
[1731077994327,0.7768,2915.2,2914.7,0.3304846]
[1731077994607,0.7768,2915.2,2914.8,0.06860448]
[1731077995271,0.7768,2915.2,2914.7,0.3304846]
[1731077995465,0.7768,2915.2,2914.5,0.54926232]
[1731077995679,0.7768,2915.2,2914.4,35.0]
[1731077996405,0.7768,2915.2,2914.4,3.0]
[1731077996617,0.7768,2915.2,2914.3,0.7648]
[1731077996764,0.7768,2915.2,2914.0,3.30484602]
[1731077996765,0.7768,2915.2,2914.2,0.54724668]
[1731077996981,0.7768,2915.2,2914.3,0.43047166]
[1731077997512,0.8285,2914.9,2913.6,0.11]
[1731077997717,0.91428385,2914.8,2913.6,0.11]
[1731077998014,0.55,2914.5,2913.6,0.11]
[1731077998213,0.8285,2914.3,2913.6,0.11]
[1731077998396,0.8285,2914.3,2913.0,3.30484602]
[1731077998397,0.8082,2914.1,2913.0,3.30484602]
[1731077998599,0.08579854,2914.0,2913.2,0.7468115]
[1731077999431,0.7578,2913.9,2913.2,0.7468115]
[1731078000184,0.7578,2913.9,2913.6,0.03]
[1731078000389,0.67565204,2915.3,2913.6,0.03]
[1731078000390,0.804,2914.3,2913.6,0.03]
[1731078000981,3.08579851,2914.9,2913.6,0.03]
[1731078000982,0.90948644,2914.2,2913.6,0.03]
[1731078002622,0.86468644,2914.2,2913.6,0.03]
[1731078003585,0.7789,2914.2,2913.6,0.03]
[1731078004499,3.09579843,2914.8,2913.6,0.03]
[1731078004500,0.63579842,2914.1,2913.6,0.03]
[1731078004633,0.797,2914.0,2913.6,0.03]
[1731078004835,0.797,2913.8,2913.6,0.03]
[1731078005043,0.08581097,2913.7,2913.6,0.03]
[1731078005821,1.44141097,2913.7,2913.6,0.03]
[1731078006053,2.21703667,2913.7,2913.6,0.03]
[1731078006767,2.21703667,2913.7,2911.8,3.30484602]
[1731078006768,0.55,2913.6,2911.8,3.30484602]
[1731078006968,0.55,2913.2,2911.8,3.30484602]
[1731078007256,1.44362693,2913.2,2912.1,3.30484602]
[1731078007422,1.44362693,2913.2,2912.2,0.06866153]
[1731078008267,0.8078,2913.2,2912.4,4.05864602]
[1731078008460,0.8078,2913.2,2912.5,0.06865489]
[1731078008746,0.8078,2913.2,2912.1,3.30484602]
[1731078009113,0.8078,2913.2,2912.2,0.0686569]
[1731078009310,0.8078,2913.2,2912.2,0.06866148]
[1731078009717,0.8078,2913.2,2912.6,0.8098]
[1731078009954,0.8078,2913.2,2912.4,3.30484602]
[1731078010465,0.8078,2913.2,2912.5,0.0686558]
[1731078010616,0.8078,2913.2,2912.4,3.30484602]
[1731078011054,0.8078,2913.2,2912.5,0.06865417]